Workbook

Sheet supported and tested functions
F6: Supported and Tested Functions
F7: *,/,+,-,^
C12: 1 | D12: tested functions, Excel to Canvas
C13: Input Units | D13: Input Name | E13: Input Value | F13: Nothing in this column!! | G13: Output Value | H13: Excel form | I13: Output Units | J13: variables | K13: Canvas form of equation
C14: feet | D14: theta | E14: 6.28 | G14: =ABS(E15) -> 1 | H14: absolute value | J14: [negativevalue] | K14: abs((negativevalue))
C15: lbm | D15: negativevalue | E15: -1 | G15: =ACOS(E16) -> 0.7855491634 | H15: acos | J15: [some_number] | K15: acos((some_number))
C16: mph | D16: some_number | E16: 0.707 | G16: =ASIN(E16) -> 0.7852471634 | H16: asin | J16: [some_number] | K16: asin((some_number))
D17: some_degrees | E17: 360 | G17: =ATAN(E16) -> 0.6154085176 | H17: atan | J17: [some_number] | K17: atan((some_number))
D18: some_exp | E18: 1 | G18: =COS(E16) -> 0.7603139617 | H18: cos
D19: some_lnx | E19: 2.71 | G19: =RADIANS(E17) -> 6.283185307 | H19: radians | J19: [some_degrees] | K19: deg_to_rad((some_degrees))
D20: some_log | E20: 10 | G20: =EXP(E18) -> 2.718281828 | H20: exp | J20: [some_exp] | K20: e((some_exp))
D21: some_hundred | E21: 100 | G21: =LN(E19) -> 0.9969486349 | H21: ln | J21: [some_lnx] | K21: ln((some_lnx))
D22: some_pi | E22: =2*PI() -> 6.283185307 | G22: =LOG(E20,10) -> 1 | H22: log | J22: [some_log] | K22: log((some_log),10)
D23: some_radians | E23: =45*6.28/360 -> 0.785 | G23: =PI()*E21 -> 314.1592654 | H23: Pi | J23: [some_hundred] | K23: pi()*(some_hundred)
D24: some_two | E24: 2 | G24: =DEGREES(E22) -> 360 | H24: deg | J24: [some_pi] | K24: rad_to_deg((some_pi))
G25: =_xlfn.SEC(E18) -> 1.850815718 | H25: sec | J25: [some_exp] | K25: sec((some_exp))
G26: =SIN(E23) -> 0.7068251811 | H26: sin | J26: [some_radians] | K26: sin((some_radians))
G27: =SQRT(E24) -> 1.414213562 | H27: sqrt | J27: [some_two] | K27: sqrt((some_two))
G28: =TAN(E16) -> 0.8543256973 | H28: tan | J28: [some_number] | K28: tan((some_number))

Sheet example setup sheet
F6: Sample Sheet, copy cells to create a new problem, or copy entire sheet
C12: 1 | D12: A vehicle of mass m=1000 lbm is undergoing a skidpad test, the turn radius is 25 feet, the vehicle velocity is 20 mph. Calculate the lateral force in lbf applied to the vehicle.
C13: Input Units | D13: Input Name | E13: Input Value | F13: Nothing in this column!! | G13: Output Value | H13: Output Names | I13: Output Units | J13: Variables | K13: Equation
C14: feet | D14: turnradius | E14: 25 | G14: =E16*5280/3600 -> 29.33333333 | H14: vel | I14: feet per second
C15: lbm | D15: mass | E15: 1000 | G15: =G14^2/E14 -> 34.41777778 | H15: accel | I15: feet per sq second
C16: mph | D16: velocity | E16: 20 | G16: =E15*G15/32.2 -> 1068.875086 | H16: force | I16: lbm | J16: [turnradius][mass][velocity] | K16: (mass)*(((velocity)*5280/3600)^2/(turnradius))/32.2
F29: click on this cell, then select the "Get Formula" button

Sheet formulasheet
C2: Input Names | D2: Inputs | F2: Outputs | G2: Output Names
I3: explicit equation creator
F4: =D5^(D6-1) -> 2.15766928 | G4: I1 | I4: test sheet: formulasheet
C5: CompRatio | D5: 9 | F5: =D5^F4+D5 -> 123.535403 | G5: La | I5: input names: column C
C6: K | D6: 1.35 | F6: =1/F5+D6 -> 1.358094845 | G6: something | I6: inputs values: column D
E7: Final Equation | F7: =1-F6+D6 -> 0.9919051545 | G7: Efficiency | I7: output equation: below final equation
E8: Eqn Chk | F8: =1-(1/((9)^((9)^((1.35)-1))+(9))+(1.35))+(1.35) -> 0.9919051545
E9: Eqn String | F9: 1-(1/((CompRatio)^((CompRatio)^((K)-1))+(CompRatio))+(K))+(K)
E10: Input String | F10: [CompRatio][K]
